bitfinex/quotes_BTCUSD_20250610
["timestamp","ask_amount","ask_price","bid_price","bid_amount"]
[1749530900546,0.01104851,109490.0,109480.0,1.72343243]
[1749530900984,0.01104851,109490.0,109480.0,1.73256635]
[1749530901199,0.01104851,109490.0,109480.0,1.74170018]
[1749530901414,0.01104851,109490.0,109480.0,1.73256635]
[1749530901635,0.01104851,109490.0,109480.0,1.74170018]
[1749530901860,0.01104851,109490.0,109480.0,1.75083385]
[1749530902086,0.01104851,109490.0,109480.0,1.19579786]
[1749530902315,0.01104851,109490.0,109480.0,1.19579794]
[1749530902763,0.01104851,109490.0,109480.0,1.15030137]
[1749530903036,0.01104851,109490.0,109480.0,1.15943504]
[1749530903930,0.01104851,109490.0,109480.0,1.15030137]
[1749530904161,0.01104851,109490.0,109480.0,1.14116754]
[1749530904388,0.01104851,109490.0,109480.0,0.95848578]
[1749530904611,0.01104851,109490.0,109480.0,1.0589002]
[1749530905275,0.01104851,109490.0,109480.0,1.25071579]
[1749530905497,0.01104851,109490.0,109480.0,1.23408196]
[1749530905715,0.01104851,109490.0,109480.0,1.24158196]
[1749530905938,0.01104851,109490.0,109480.0,1.25071579]
[1749530906167,0.01104851,109490.0,109480.0,1.24158196]
[1749530907736,0.01104851,109490.0,109480.0,1.25071579]
[1749530907958,0.01104851,109490.0,109480.0,1.23408196]
[1749530908176,0.01104851,109490.0,109480.0,1.24321579]
[1749530908394,0.01104851,109490.0,109480.0,1.23408196]
[1749530910082,0.01104851,109490.0,109480.0,1.05140028]
[1749530911903,0.01104851,109490.0,109480.0,0.97839394]
[1749530912117,0.01104851,109490.0,109480.0,0.98752786]
[1749530912547,0.01104851,109490.0,109480.0,0.97232786]
[1749530913637,0.01104851,109490.0,109480.0,0.96319394]
[1749530915863,0.01104851,109490.0,109480.0,1.05444527]
[1749530916077,0.01104851,109490.0,109480.0,0.96319394]
[1749530916282,0.01104851,109490.0,109480.0,0.95405994]
[1749530916459,0.02664851,109490.0,109480.0,1.05444527]
[1749530916973,0.02664851,109490.0,109480.0,1.04531127]
[1749530917190,0.02664851,109490.0,109480.0,1.05444527]
[1749530919589,0.02664851,109490.0,109480.0,1.04531127]
[1749530922678,0.02664851,109490.0,109480.0,1.03617719]
[1749530922898,0.05178109,109490.0,109480.0,1.01245719]
[1749530923119,0.070047,109490.0,109480.0,0.71705133]
[1749530923346,0.070047,109490.0,109480.0,0.6258]
[1749530923561,0.070047,109490.0,109480.0,0.698787]
[1749530924012,0.06091392,109490.0,109480.0,0.898787]
[1749530924490,0.07004692,109490.0,109480.0,0.898787]
[1749530924721,0.05178109,109490.0,109480.0,0.874987]
[1749530924924,0.05178109,109490.0,109480.0,0.8258]
[1749530925142,0.06091384,109490.0,109480.0,0.8258]
[1749530925602,0.05178109,109490.0,109480.0,0.8258]
[1749530928870,0.05178101,109490.0,109480.0,0.8258]
[1749530932600,0.04264851,109490.0,109480.0,0.8258]
[1749530932812,0.05178101,109490.0,109480.0,0.8258]
[1749530933676,0.04264851,109490.0,109480.0,0.8258]
[1749530935236,0.05178109,109490.0,109480.0,0.8258]
[1749530936939,0.04264851,109490.0,109480.0,0.8258]
[1749530937151,0.05178109,109490.0,109480.0,0.8258]
[1749530937828,0.04264851,109490.0,109480.0,0.8258]
[1749530943379,0.05178101,109490.0,109480.0,0.8258]
[1749530943816,0.04264851,109490.0,109480.0,0.8258]
[1749530944025,0.05178101,109490.0,109480.0,0.8258]
[1749530944239,0.05178101,109490.0,109480.0,0.85327717]
[1749530944643,0.04264851,109490.0,109480.0,0.85327717]
[1749530944846,0.05178101,109490.0,109480.0,0.85327717]
[1749530947680,0.06091359,109490.0,109480.0,0.85327717]
[1749530947927,0.06091368,109490.0,109480.0,0.85327717]
[1749530948592,0.06091359,109490.0,109480.0,0.85327717]
[1749530948795,0.06091368,109490.0,109480.0,0.85327717]
[1749530951760,0.07004651,109490.0,109480.0,0.85327717]
[1749530952215,0.06091368,109490.0,109480.0,0.85327717]
[1749530952769,0.07004651,109490.0,109480.0,0.85327717]
[1749530955521,0.07004651,109490.0,109480.0,1.45327717]
[1749530959308,0.07917951,109490.0,109480.0,1.45327717]
[1749530959725,0.24357967,109490.0,109480.0,1.22576]
[1749530959933,0.24357967,109490.0,109480.0,1.29878664]
[1749530961405,0.06091459,109490.0,109480.0,1.29878664]
[1749530970955,0.07004784,109490.0,109480.0,1.29878664]
[1749530971982,0.06091459,109490.0,109480.0,1.29878664]
[1749530972342,0.07004784,109490.0,109480.0,1.29878664]
[1749530972536,0.06091459,109490.0,109480.0,1.29878664]
[1749530972688,0.07918043,109490.0,109480.0,1.29878664]
[1749530972913,0.05178101,109490.0,109480.0,1.29878664]
[1749530973101,0.07917942,109490.0,109480.0,1.29878664]
[1749530973541,0.0883125,109490.0,109480.0,1.29878664]
[1749530973928,0.07917942,109490.0,109480.0,1.29878664]
[1749530974483,0.0883125,109490.0,109480.0,1.29878664]
[1749530974697,0.0883125,109490.0,109480.0,1.22576]
[1749530975154,0.07917942,109490.0,109480.0,1.22576]
[1749530975611,0.07917942,109490.0,109480.0,1.29873865]
[1749530975857,0.07004642,109490.0,109480.0,1.29873865]
[1749530976342,0.07917934,109490.0,109480.0,1.29873865]
[1749530980673,0.08831234,109490.0,109480.0,1.29873865]
[1749530985472,0.08831301,109490.0,109480.0,1.29873865]
[1749530985675,0.07917984,109490.0,109480.0,1.29873865]
[1749530985894,0.07004684,109490.0,109480.0,1.29873865]
[1749530986099,0.07917984,109490.0,109480.0,1.29873865]
[1749530986755,0.07004684,109490.0,109480.0,0.69873865]
[1749530987185,0.07917992,109490.0,109480.0,0.69873865]
[1749530988784,0.07917992,109490.0,109480.0,0.62576]
[1749530989003,0.06091392,109490.0,109480.0,0.62576]
[1749530989216,0.070047,109490.0,109480.0,0.62576]
[1749530990985,0.06091392,109490.0,109480.0,0.62576]
[1749530991329,0.07004692,109490.0,109480.0,0.62576]
[1749530992778,0.07918,109490.0,109480.0,0.62576]
[1749530992970,0.07004692,109490.0,109480.0,0.62576]
[1749530993873,0.07917992,109490.0,109480.0,0.62576]
[1749530994278,0.07917984,109490.0,109480.0,0.62576]
[1749530999377,0.08831301,109490.0,109480.0,0.62576]
[1749530999580,0.08831292,109490.0,109480.0,0.62576]
[1749531000672,0.07917984,109490.0,109480.0,0.62576]
[1749531002543,0.08831292,109490.0,109480.0,0.62576]
[1749531004506,0.08831351,109490.0,109480.0,0.62576]
[1749531005138,0.07918034,109490.0,109480.0,0.62576]
[1749531005334,0.08831359,109490.0,109480.0,0.62576]
[1749531005720,0.070047,109490.0,109480.0,0.62576]
[1749531006154,0.04491392,109490.0,109480.0,0.62576]
[1749531006356,0.05404692,109490.0,109480.0,0.62576]
[1749531006639,0.02664851,109490.0,109480.0,0.62576]
[1749531006845,0.13735392,109490.0,109480.0,0.62576]
[1749531008490,0.16178684,109490.0,109480.0,0.62572]
[1749531009196,0.17091992,109490.0,109480.0,0.62572]
[1749531009599,0.16178684,109490.0,109480.0,0.62572]
[1749531009852,0.17091992,109490.0,109480.0,0.62572]
[1749531010059,0.18005309,109490.0,109480.0,0.62572]
[1749531011630,0.17091992,109490.0,109480.0,0.62572]
[1749531012702,0.16178684,109490.0,109480.0,0.62572]
[1749531012919,0.17091992,109490.0,109480.0,0.62572]
[1749531014032,0.14352109,109490.0,109480.0,0.62572]
[1749531014331,0.15265392,109490.0,109480.0,0.62572]
[1749531015150,0.14352109,109490.0,109480.0,0.62572]
[1749531015380,0.16178668,109490.0,109480.0,0.62572]
[1749531015595,0.15265376,109490.0,109480.0,0.62572]
[1749531015812,0.16178659,109490.0,109480.0,0.62572]
[1749531016254,0.15265376,109490.0,109480.0,0.62572]
[1749531017575,0.16178659,109490.0,109480.0,0.62572]
[1749531017790,0.15265376,109490.0,109480.0,0.62572]
[1749531018043,0.16178651,109490.0,109480.0,0.62572]
[1749531019787,0.15265376,109490.0,109480.0,0.62572]
[1749531020004,0.13438851,109490.0,109480.0,0.62572]
[1749531020231,0.10348851,109490.0,109480.0,1.48250303]
[1749531020450,0.01104851,109490.0,109480.0,1.69762634]
[1749531020901,0.01104851,109490.0,109480.0,2.2775285]
[1749531021123,0.00604851,109490.0,109480.0,2.2765285]
[1749531021367,0.00604851,109490.0,109480.0,1.72162634]
[1749531021595,0.00904851,109490.0,109480.0,1.72162634]
[1749531022092,0.00604851,109490.0,109480.0,1.72162634]
[1749531022314,0.00204851,109490.0,109480.0,1.72062634]
[1749531022884,0.00504851,109490.0,109480.0,1.72162634]
[1749531023100,0.00204851,109490.0,109480.0,1.72062634]
[1749531023294,0.00404851,109490.0,109480.0,1.72062634]
[1749531023520,0.00504851,109490.0,109480.0,1.72062634]
[1749531023723,0.00504851,109490.0,109480.0,1.71312634]
[1749531024165,0.00504851,109490.0,109480.0,1.72062634]
[1749531026481,0.00504851,109490.0,109480.0,1.50572418]
[1749531026701,0.00504851,109490.0,109480.0,2.06062634]
[1749531026912,0.00504851,109490.0,109480.0,2.17894634]
[1749531028413,0.00504851,109490.0,109480.0,2.17144642]
[1749531028827,0.00504851,109490.0,109480.0,2.18057992]
[1749531030706,0.00504851,109490.0,109480.0,2.73548208]
[1749531030909,0.00504851,109490.0,109480.0,2.74298208]
[1749531031366,0.00504851,109490.0,109480.0,2.40298208]
[1749531031623,0.00504851,109490.0,109480.0,1.84807992]
[1749531031852,0.00504851,109490.0,109480.0,1.87548692]
[1749531032058,0.00504851,109490.0,109480.0,2.30288993]
[1749531033195,0.00504851,109490.0,109480.0,2.44488993]
[1749531033869,0.00304851,109490.0,109480.0,2.44488993]
[1749531034201,0.00204851,109490.0,109480.0,2.44488993]
[1749531035694,0.00204851,109490.0,109480.0,2.44588993]
[1749531035938,0.00204851,109490.0,109480.0,2.43838993]
[1749531036582,0.00204851,109490.0,109480.0,2.44588993]
[1749531036796,0.00204851,109490.0,109480.0,2.43838993]
[1749531037450,0.00204851,109490.0,109480.0,2.44588993]
[1749531038118,0.00204851,109490.0,109480.0,2.43838993]
[1749531040969,0.00204851,109490.0,109480.0,2.77838993]
[1749531042763,0.00204851,109490.0,109480.0,2.75466993]
[1749531042975,0.00204851,109490.0,109480.0,2.73826993]
[1749531043184,0.00204851,109490.0,109480.0,2.76198993]
[1749531043420,0.01754851,109490.0,109480.0,2.73826993]
[1749531043632,0.01754851,109490.0,109480.0,2.19795419]
[1749531049841,0.01754851,109490.0,109480.0,2.10673088]
[1749531052451,0.0164,109500.0,109490.0,0.8885308]
[1749531052677,0.0174,109500.0,109490.0,0.8885308]
[1749531052891,0.0194,109500.0,109490.0,0.8885308]
[1749531054135,0.0351,109500.0,109490.0,0.8885308]
[1749531056041,0.0351,109500.0,109490.0,1.08946213]
[1749531056301,0.0351,109500.0,109490.0,0.89766405]
[1749531056510,0.0351,109500.0,109490.0,1.44343296]
[1749531057410,0.0351,109500.0,109490.0,1.45256621]
[1749531057629,0.0351,109500.0,109490.0,1.46169938]
[1749531057864,0.0351,109500.0,109490.0,1.45256621]
[1749531058081,0.0351,109500.0,109490.0,1.46169938]
[1749531058519,0.0351,109500.0,109490.0,1.45256621]
[1749531058945,0.0351,109500.0,109490.0,1.44343296]
[1749531059172,0.0351,109500.0,109490.0,1.45256621]
[1749531059602,0.0351,109500.0,109490.0,1.44343296]
[1749531060117,0.0351,109500.0,109490.0,1.45256613]
[1749531060731,0.0351,109500.0,109490.0,1.80170276]
[1749531060957,0.0351,109500.0,109490.0,1.71955319]
[1749531061160,0.0351,109500.0,109490.0,1.81081885]
[1749531061406,0.0351,109500.0,109490.0,1.81995202]
[1749531062088,0.0351,109500.0,109490.0,1.24678344]
[1749531062734,0.0351,109500.0,109490.0,1.22306344]
[1749531062949,0.0351,109500.0,109490.0,1.24678344]
[1749531063547,0.0351,109500.0,109490.0,0.88306344]
[1749531063766,0.0351,109500.0,109490.0,0.90678344]
[1749531064194,0.0351,109500.0,109490.0,0.91591669]
[1749531064400,0.0351,109500.0,109490.0,0.90678344]
[1749531065053,0.0351,109500.0,109490.0,0.91591669]
[1749531066330,0.0351,109500.0,109490.0,0.90678344]
[1749531066757,0.0351,109500.0,109490.0,1.24678344]
[1749531067857,0.0351,109500.0,109490.0,0.90678344]
[1749531069163,0.0351,109500.0,109490.0,0.88306344]
[1749531069391,0.0351,109500.0,109490.0,0.90678344]
[1749531069612,0.24514464,109500.0,109490.0,0.79126558]
[1749531069858,0.06249616,109500.0,109490.0,0.72372]
[1749531070315,0.15489616,109500.0,109490.0,0.72372]
[1749531070562,0.14576391,109500.0,109490.0,0.72372]
[1749531071017,0.15489607,109500.0,109490.0,0.72372]
[1749531071974,0.14576391,109500.0,109490.0,0.72372]
[1749531073020,0.14576383,109500.0,109490.0,0.72372]
[1749531073443,0.13663183,109500.0,109490.0,0.72372]
[1749531073651,0.14576374,109500.0,109490.0,0.72372]
[1749531074686,0.13663183,109500.0,109490.0,0.72372]
[1749531075280,0.13663175,109500.0,109490.0,0.72372]
[1749531077195,0.1275,109500.0,109490.0,0.72372]
[1749531077612,0.13663166,109500.0,109490.0,0.72372]
[1749531078639,0.1275,109500.0,109490.0,0.72372]
[1749531079101,0.1275,109500.0,109490.0,1.06372]
[1749531079970,0.0351,109500.0,109490.0,1.07285317]
[1749531080180,0.0351,109500.0,109490.0,1.07285325]
[1749531080406,0.0351,109500.0,109490.0,1.61862216]
[1749531080613,0.0351,109500.0,109490.0,1.06372]
[1749531081254,0.0351,109500.0,109490.0,1.15498558]
[1749531082333,0.0351,109500.0,109490.0,1.06372]
[1749531085817,0.04423175,109500.0,109490.0,1.06372]
[1749531086016,0.0351,109500.0,109490.0,1.06372]
[1749531090387,0.0351,109500.0,109490.0,1.15498558]
[1749531092921,0.0351,109500.0,109490.0,2.01174944]
[1749531093128,0.0351,109500.0,109490.0,2.00261677]
[1749531093339,0.0351,109500.0,109490.0,1.99348385]
[1749531093553,0.0351,109500.0,109490.0,2.00261677]
[1749531093761,0.003,109500.0,109490.0,2.00261677]
[1749531093960,0.003,109500.0,109490.0,2.0117496]
[1749531094170,0.003,109500.0,109490.0,1.99348385]
[1749531094382,0.003,109500.0,109490.0,2.01174993]
[1749531095688,0.0184,109500.0,109490.0,2.01174993]
[1749531095894,0.0345,109500.0,109490.0,2.01174993]
[1749531097155,0.0345,109500.0,109490.0,2.02088276]
[1749531097379,0.0345,109500.0,109490.0,1.98802993]
[1749531097588,0.0345,109500.0,109490.0,2.01174993]
[1749531099937,0.0345,109500.0,109490.0,2.00261693]
[1749531100151,0.0345,109500.0,109490.0,2.01174993]
[1749531100995,0.0345,109500.0,109490.0,2.02088285]
[1749531101211,0.0345,109500.0,109490.0,2.01174993]
[1749531101653,0.0345,109500.0,109490.0,2.02088285]
[1749531101865,0.0345,109500.0,109490.0,2.01174993]
[1749531102298,0.0345,109500.0,109490.0,2.02088285]
[1749531102507,0.0345,109500.0,109490.0,2.03001568]
[1749531102724,0.0345,109500.0,109490.0,2.03001518]
[1749531102725,0.003,109500.0,109490.0,2.03001518]
[1749531102934,0.002,109510.0,109500.0,0.75004464]
[1749531103141,0.00204854,109510.0,109500.0,2.16788219]
[1749531103571,0.00204854,109510.0,109500.0,2.59998219]
[1749531103781,0.00204854,109510.0,109500.0,2.50874682]
[1749531103983,0.00204854,109510.0,109500.0,2.63645946]
[1749531104186,0.00204854,109510.0,109500.0,2.66385946]
[1749531104340,0.00804854,109510.0,109500.0,2.66485946]
[1749531104748,0.00804854,109510.0,109500.0,2.53714682]
[1749531107537,0.00804854,109510.0,109500.0,2.62817726]
[1749531109473,0.00804854,109510.0,109500.0,2.64271811]
[1749531111677,0.00804854,109510.0,109500.0,2.30271811]
[1749531111984,0.00804854,109510.0,109500.0,2.64271811]
[1749531112820,0.04091692,109530.0,109520.0,0.4]
[1749531113017,0.04096546,109530.0,109520.0,0.49649042]
[1749531113743,0.04096546,109530.0,109520.0,1.33493606]
[1749531113744,0.03334854,109530.0,109520.0,1.33493606]
[1749531113885,0.03334854,109530.0,109520.0,1.22003398]
[1749531114088,0.03334854,109530.0,109520.0,1.23829506]
[1749531114448,0.03334854,109530.0,109520.0,1.78506672]
[1749531114652,0.03334854,109530.0,109520.0,1.78406672]
[1749531114805,0.03334854,109530.0,109520.0,1.22003398]
[1749531114996,0.03534854,109530.0,109520.0,1.62103398]
[1749531115581,0.03534854,109530.0,109520.0,1.6395114]
[1749531115987,0.03534854,109530.0,109520.0,1.63038082]
[1749531116417,0.03534854,109530.0,109520.0,1.6395114]
[1749531116801,0.03634854,109530.0,109520.0,1.6395114]
[1749531117638,0.03634854,109530.0,109520.0,1.63038082]
[1749531117835,0.03634854,109530.0,109520.0,1.6395114]
[1749531118258,0.03634854,109530.0,109520.0,1.6486419]
[1749531118591,0.03634854,109530.0,109520.0,1.6395114]
[1749531118799,0.03634854,109530.0,109520.0,1.63038082]
[1749531119283,0.03634854,109530.0,109520.0,1.6395114]
[1749531119491,0.03634854,109530.0,109520.0,1.43863512]
[1749531120228,0.0454777,109530.0,109520.0,1.43863512]
[1749531120426,0.03634854,109530.0,109520.0,1.43863512]
[1749531121473,0.03634854,109530.0,109520.0,1.09863512]
[1749531123945,0.03634854,109530.0,109520.0,1.0258647]
[1749531124583,0.03634854,109530.0,109520.0,1.11682772]
[1749531125031,0.03634854,109530.0,109520.0,1.0258647]
[1749531125650,0.03634854,109530.0,109520.0,0.17860488]
[1749531125867,0.03634854,109530.0,109520.0,0.13737005]
[1749531126094,0.0454777,109530.0,109520.0,0.13737005]
[1749531126303,0.03634854,109530.0,109520.0,0.13508785]
[1749531126506,0.0454777,109530.0,109520.0,0.13508785]
[1749531126712,0.0454777,109530.0,109520.0,0.53508785]
[1749531127148,0.03634854,109530.0,109520.0,0.53508785]
[1749531127347,0.0454777,109530.0,109520.0,0.53508785]
[1749531127562,0.03634854,109530.0,109520.0,0.53508785]
[1749531128949,0.04547779,109530.0,109520.0,0.53508785]
[1749531129155,0.03634854,109530.0,109520.0,0.53508785]
[1749531129356,0.04547779,109530.0,109520.0,0.53508785]
[1749531129562,0.03634854,109530.0,109520.0,0.53508785]
[1749531132669,0.03634854,109530.0,109520.0,0.48051283]
[1749531133291,0.03634854,109530.0,109520.0,0.48051283]
[1749531134899,0.33718308,109530.0,109520.0,0.53523497]
[1749531135084,0.33718308,109530.0,109520.0,0.51699783]
[1749531135291,0.47898094,109530.0,109520.0,0.49327783]
[1749531135489,0.47898094,109530.0,109520.0,0.51699783]
[1749531135699,0.47898094,109530.0,109520.0,0.48051283]
[1749531136313,0.47898094,109530.0,109520.0,0.53520198]
[1749531136720,0.47898094,109530.0,109520.0,0.51148198]
[1749531137038,0.47898094,109530.0,109520.0,0.53520198]
[1749531142659,0.81898094,109530.0,109520.0,0.53520198]
[1749531143613,0.67718308,109530.0,109520.0,0.53520198]
[1749531146850,0.33718308,109530.0,109520.0,0.53520198]
[1749531147547,0.09236,109530.0,109520.0,0.53520198]
[1749531147784,0.27495837,109530.0,109520.0,0.50782249]
[1749531148439,0.29321762,109530.0,109520.0,0.50782249]
[1749531148668,0.20085762,109530.0,109520.0,0.50782249]
[1749531148875,0.20085762,109530.0,109520.0,0.51692571]
[1749531148876,0.29321762,109530.0,109520.0,0.51692571]
[1749531149524,0.11974916,109530.0,109520.0,0.51692571]
[1749531149734,0.11061925,109530.0,109520.0,0.51692571]
[1749531150594,0.14161925,109530.0,109520.0,0.51692571]
[1749531150807,0.15074916,109530.0,109520.0,0.51692571]
[1749531151016,0.14161925,109530.0,109520.0,0.51692571]
[1749531151431,0.031,109530.0,109520.0,0.51692571]
[1749531151697,0.15074815,109530.0,109520.0,0.51692571]
[1749531152758,0.14874815,109530.0,109520.0,0.51692571]
[1749531153196,0.13961857,109530.0,109520.0,0.51692571]
[1749531153406,0.14874807,109530.0,109520.0,0.51692571]
[1749531154496,0.15787773,109530.0,109520.0,0.51692571]
[1749531154912,0.16700756,109530.0,109520.0,0.51692571]
[1749531155970,0.01825757,109540.0,109520.0,0.85692571]
[1749531156183,0.00912925,109530.0,109520.0,0.89080198]
[1749531156425,0.00912916,109530.0,109520.0,0.89080198]
[1749531157057,0.00912916,109530.0,109520.0,0.90650198]
[1749531157479,0.00912916,109530.0,109520.0,0.92457953]
[1749531157715,0.01012916,109530.0,109520.0,0.92457953]
[1749531157920,0.001,109530.0,109520.0,0.92457953]
[1749531158109,0.01012916,109530.0,109520.0,0.92457953]
[1749531158715,0.001,109530.0,109520.0,0.92457953]
[1749531158916,0.002,109530.0,109520.0,0.92457953]
[1749531159924,0.02025849,109530.0,109520.0,0.92457953]
[1749531161195,0.02025841,109530.0,109520.0,0.92457953]
[1749531162258,0.02938774,109530.0,109520.0,0.92457953]
[1749531162685,0.02938774,109530.0,109520.0,0.90887953]
[1749531162891,0.02938774,109530.0,109520.0,0.89327953]
[1749531165247,0.04764681,109530.0,109520.0,0.89327953]
[1749531167423,0.0476474,109530.0,109520.0,0.89327953]
[1749531169660,0.0476474,109530.0,109520.0,0.89327953]
[1749531170482,0.0476474,109530.0,109520.0,0.55327953]
[1749531171869,0.04764798,109530.0,109520.0,0.55327953]
[1749531172075,0.06384798,109530.0,109520.0,0.55327953]
[1749531173329,0.24398761,109530.0,109520.0,0.52955953]
[1749531173540,0.24398761,109530.0,109520.0,0.55323953]
[1749531175697,0.05225907,109530.0,109520.0,0.55323953]
[1749531175909,0.05471798,109530.0,109520.0,0.55323953]
[1749531176119,0.04764789,109530.0,109520.0,0.55323953]
[1749531176506,0.03851873,109530.0,109520.0,0.55323953]
[1749531176925,0.02938882,109530.0,109520.0,0.55323953]
[1749531177569,0.02025857,109530.0,109520.0,0.55323953]
[1749531177827,0.03851782,109530.0,109520.0,0.55323953]
[1749531179513,0.04764773,109530.0,109520.0,0.55323953]
[1749531179978,0.03851782,109530.0,109520.0,0.55323953]
[1749531180600,0.02938807,109530.0,109520.0,0.55323953]
[1749531180816,0.04764748,109530.0,109520.0,0.55323953]
[1749531181238,0.0476474,109530.0,109520.0,0.55323953]
[1749531181447,0.0476474,109530.0,109520.0,0.48047283]
[1749531182556,0.0788474,109530.0,109520.0,0.48047283]
[1749531183345,0.06971824,109530.0,109520.0,0.48047283]
[1749531184562,0.06058849,109530.0,109520.0,0.48047283]
[1749531186516,0.06058849,109530.0,109520.0,0.57143585]
[1749531187802,0.06971824,109530.0,109520.0,0.57143585]
[1749531188238,0.06971815,109530.0,109520.0,0.57143585]
[1749531188709,0.07884798,109530.0,109520.0,0.57143585]
[1749531188920,0.06971857,109530.0,109520.0,0.48047283]
[1749531189435,0.25231694,109530.0,109520.0,0.45679283]
[1749531189642,0.2249282,109530.0,109520.0,0.55348023]
[1749531189851,0.2249282,109530.0,109520.0,0.54413339]
[1749531190300,0.2249282,109530.0,109520.0,0.55342652]
[1749531191828,0.2249282,109530.0,109520.0,0.54413339]
[1749531194643,0.2249282,109530.0,109520.0,0.47112599]
[1749531195084,0.2249282,109530.0,109520.0,0.54413339]
[1749531195292,0.2249282,109530.0,109520.0,0.55317872]
[1749531197045,0.2249282,109530.0,109520.0,0.48017132]
[1749531200516,0.23405778,109530.0,109520.0,0.48017132]
[1749531202495,0.23405778,109530.0,109520.0,0.55317872]
[1749531208990,0.0332,109530.0,109520.0,0.55317872]
[1749531209191,0.09436,109530.0,109520.0,0.58607872]
[1749531209629,0.10348925,109530.0,109520.0,0.55317872]
[1749531211161,0.11261866,109530.0,109520.0,0.55317872]
[1749531211566,0.11261858,109530.0,109520.0,0.55317872]
[1749531212111,0.09436,109530.0,109520.0,0.55317872]
[1749531212381,0.11261849,109530.0,109520.0,0.55317872]
[1749531212591,0.1217479,109530.0,109520.0,0.55317872]
[1749531213016,0.10348916,109530.0,109520.0,0.55317872]
[1749531213238,0.12174791,109530.0,109520.0,0.55317872]
[1749531213445,0.11261841,109530.0,109520.0,0.55317872]
[1749531213648,0.12174782,109530.0,109520.0,0.55317872]
[1749531214107,0.1308774,109530.0,109520.0,0.55317872]
[1749531214335,0.12174782,109530.0,109520.0,0.55317872]
[1749531214572,0.1308774,109530.0,109520.0,0.55317872]
[1749531216052,0.12174782,109530.0,109520.0,0.55317872]
[1749531216254,0.1308774,109530.0,109520.0,0.55317872]
[1749531218419,0.12174782,109530.0,109520.0,0.55317872]
[1749531218848,0.13087732,109530.0,109520.0,0.55317872]
[1749531219754,0.1400069,109530.0,109520.0,0.55317872]
[1749531220195,0.02938782,109530.0,109520.0,0.55317872]
[1749531220409,0.1308774,109530.0,109520.0,0.58377872]
[1749531220848,0.01112916,109530.0,109520.0,0.55317872]
[1749531221077,0.11261849,109530.0,109520.0,0.56827872]
[1749531222372,0.1217479,109530.0,109520.0,0.56827872]
[1749531222810,0.0293879,109530.0,109520.0,0.56827872]
[1749531224953,0.0293879,109530.0,109520.0,0.55317872]
[1749531226366,0.0385174,109530.0,109520.0,0.55317872]
[1749531227600,0.04764698,109530.0,109520.0,0.55317872]
[1749531228035,0.03851782,109530.0,109520.0,0.55317872]
[1749531229265,0.04764748,109530.0,109520.0,0.55317872]
[1749531229736,0.04764748,109530.0,109520.0,0.48017132]
[1749531230165,0.25241694,109530.0,109520.0,0.55312186]
[1749531230374,0.24328744,109530.0,109520.0,0.55312186]
[1749531230592,0.25241735,109530.0,109520.0,0.55312186]
[1749531231459,0.06068907,109530.0,109520.0,0.55312186]
[1749531238630,0.06068907,109530.0,109520.0,0.48017132]
[1749531240151,0.05155924,109530.0,109520.0,0.48017132]
[1749531240386,0.06068899,109530.0,109520.0,0.48017132]
[1749531240602,0.05155891,109530.0,109520.0,0.48017132]
[1749531240808,0.06068866,109530.0,109520.0,0.48017132]
[1749531242305,0.04488866,109530.0,109520.0,0.48017132]
[1749531242743,0.04488866,109530.0,109520.0,0.55317057]
[1749531243870,0.03575891,109530.0,109520.0,0.55317057]
[1749531244950,0.06108866,109530.0,109520.0,0.55317057]
[1749531245382,0.05195891,109530.0,109520.0,0.55317057]
[1749531245592,0.06108866,109530.0,109520.0,0.55317057]
[1749531246062,0.05195891,109530.0,109520.0,0.55317057]
[1749531246821,0.05195883,109530.0,109520.0,0.55317057]
[1749531247022,0.06108849,109530.0,109520.0,0.55317057]
[1749531247629,0.05195883,109530.0,109520.0,0.55317057]
[1749531247841,0.06108849,109530.0,109520.0,0.55317057]
[1749531250586,0.05561576,109530.0,109520.0,0.55317057]
[1749531251380,0.02738849,109530.0,109520.0,0.55317057]
[1749531251784,0.02738849,109530.0,109520.0,0.54478057]
[1749531252757,0.02738858,109530.0,109520.0,0.54478057]
[1749531252957,0.01825883,109530.0,109520.0,0.54478057]
[1749531253191,0.02738849,109530.0,109520.0,0.54478057]
[1749531256696,0.09232,109530.0,109520.0,0.54478057]
[1749531256915,0.11057857,109530.0,109520.0,0.54478057]
[1749531257427,0.11970815,109530.0,109520.0,0.54478057]
[1749531258680,0.11057857,109530.0,109520.0,0.54478057]
[1749531258890,0.11970815,109530.0,109520.0,0.54478057]
[1749531259301,0.11057857,109530.0,109520.0,0.54478057]
[1749531259533,0.11970815,109530.0,109520.0,0.54478057]
[1749531260377,0.11970815,109530.0,109520.0,0.47178132]
[1749531261243,0.11057857,109530.0,109520.0,0.47178132]
[1749531261380,0.11970815,109530.0,109520.0,0.47178132]
[1749531261780,0.11970815,109530.0,109520.0,0.56274434]
[1749531262941,0.11970823,109530.0,109520.0,0.56274434]
[1749531263374,0.00912916,109530.0,109520.0,0.56274434]
[1749531263593,0.11970815,109530.0,109520.0,0.56274434]
[1749531263807,0.11970815,109530.0,109520.0,0.57854434]
[1749531264233,0.11970815,109530.0,109520.0,0.56274434]
[1749531264677,0.11057857,109530.0,109520.0,0.56274434]
[1749531265781,0.01825857,109530.0,109520.0,0.56274434]
[1749531268391,0.01825849,109530.0,109520.0,0.56274434]
[1749531269193,0.02738807,109530.0,109520.0,0.56274434]
[1749531269395,0.01825849,109530.0,109520.0,0.56274434]
[1749531269675,0.02738799,109530.0,109520.0,0.56274434]
[1749531270456,0.01825849,109530.0,109520.0,0.56274434]
[1749531270732,0.0273879,109530.0,109520.0,0.56274434]
[1749531270916,0.0273879,109530.0,109520.0,0.57854434]
[1749531271142,0.0273879,109530.0,109520.0,0.56274434]
[1749531271331,0.0365174,109530.0,109520.0,0.56274434]
[1749531272316,0.0273879,109530.0,109520.0,0.56274434]
[1749531272745,0.03651748,109530.0,109520.0,0.56274434]
[1749531272945,0.0273879,109530.0,109520.0,0.56274434]
[1749531273961,0.01825849,109530.0,109520.0,0.56915917]
[1749531274168,0.01825849,109530.0,109520.0,0.56915914]
[1749531274924,0.01825849,109530.0,109520.0,0.58425914]
[1749531275293,0.01825849,109530.0,109520.0,0.58425918]
[1749531275646,0.02738799,109530.0,109520.0,0.57784434]
[1749531275855,0.03651757,109530.0,109520.0,0.58425918]
[1749531276735,0.02738799,109530.0,109520.0,0.58425918]
[1749531277407,0.01825857,109530.0,109520.0,0.56915919]
[1749531278060,0.02738815,109530.0,109520.0,0.56915929]
[1749531279327,0.02738815,109530.0,109520.0,0.56915931]
[1749531279762,0.02738815,109530.0,109520.0,0.56915954]
[1749531280473,0.02738807,109530.0,109520.0,0.56915954]
[1749531280920,0.02738807,109530.0,109520.0,0.56915957]
[1749531281168,0.02738807,109530.0,109520.0,0.56274434]
[1749531281300,0.03651765,109530.0,109520.0,0.56915959]
[1749531282501,0.03651765,109530.0,109520.0,0.56915995]
[1749531283863,0.0456474,109530.0,109520.0,0.56274434]
[1749531284074,0.0456474,109530.0,109520.0,0.56915995]